bitfinex-derivatives/quotes_ETHF0:USTF0_20250629
["timestamp","ask_amount","ask_price","bid_price","bid_amount"]
[1751162292859,1.02214638,2429.5,2429.4,0.57607]
[1751162294061,1.25261,2429.7,2429.6,0.57602]
[1751162294257,2.2751525,2429.7,2429.6,0.57602]
[1751162295656,0.57602,2429.6,2429.5,1.23913]
[1751162295863,1.5985625,2429.6,2429.5,1.23913]
[1751162297367,1.0225425,2429.6,2429.3,31.13]
[1751162297555,0.57607,2429.5,2429.4,0.57606]
[1751162297756,1.5986125,2429.5,2429.4,0.57606]
[1751162298260,4.00349424,2429.5,2429.2,3.2078]
[1751162298567,4.00349424,2429.5,2429.1,0.57613]
[1751162298568,3.55707174,2429.3,2429.1,0.57613]
[1751162298862,0.57612,2429.2,2429.0,1.28255]
[1751162299054,1.28932,2429.2,2429.0,1.28255]
[1751162300464,1.28932,2429.2,2429.1,0.57614]
[1751162301469,0.7132,2429.2,2429.0,0.7064]
[1751162301668,1.28933,2429.2,2429.1,0.57614]
[1751162302169,0.57614,2429.1,2429.0,1.28255]
[1751162302374,1.28933,2429.2,2429.1,0.57614]
[1751162302664,1.28933,2429.2,2429.0,32.42455]
[1751162302867,1.28933,2429.2,2429.0,31.8484]
[1751162303067,1.28933,2429.2,2429.1,0.57614]
[1751162306773,1.28933,2429.2,2429.1,31.71314]
[1751162307369,3.69415174,2429.2,2428.9,3.2078]
[1751162307570,0.57624,2428.7,2428.6,3.2078]
[1751162307763,0.57623,2428.8,2428.7,0.57623]
[1751162308165,0.57624,2428.7,2428.6,3.78404]
[1751162308359,0.57624,2428.7,2428.6,34.98404]
[1751162308567,1.28263,2428.8,2428.7,0.57624]
[1751162309062,1.28263,2428.8,2428.7,1.25714]
[1751162310274,0.5762,2428.9,2428.8,0.57621]
[1751162310676,1.59898347,2428.9,2428.8,0.57621]
[1751162311269,1.02278347,2428.9,2428.8,0.57621]
[1751162312281,0.57615,2429.1,2429.0,0.57616]
[1751162312575,1.59839055,2429.1,2429.0,0.57616]
[1751162312974,1.02224055,2429.1,2429.0,0.57616]
[1751162313478,1.02224055,2429.1,2429.0,1.30156]
[1751162315575,0.57612,2429.2,2429.1,0.57614]
[1751162315771,1.02245549,2429.2,2429.1,0.57614]
[1751162315969,3.2078,2429.5,2429.1,34.89195174]
[1751162316169,1.02251676,2429.4,2429.3,0.57609]
[1751162316377,3.2078,2429.5,2429.4,0.57607]
[1751162316575,4.23044884,2429.5,2429.4,0.57607]
[1751162317077,4.80649884,2429.5,2429.4,0.57607]
[1751162317373,4.23044884,2429.5,2429.4,0.57607]
[1751162317875,1.02264884,2429.5,2429.4,0.57607]
[1751162319771,1.02264884,2429.5,2429.4,6.93207]
[1751162319976,0.57604,2429.6,2429.5,0.57605]
[1751162320171,1.59829224,2429.6,2429.5,0.57605]
[1751162320368,1.59829224,2429.6,2429.5,1.29535]
[1751162321380,1.59829224,2429.6,2429.5,0.7193]
[1751162322975,4.00320398,2429.6,2429.3,0.57608]
[1751162323183,2.74485,2429.5,2429.4,6.356]
[1751162324282,0.57607,2429.4,2429.3,6.93208]
[1751162325379,0.57609,2429.3,2429.2,3.7839]
[1751162325580,1.28099,2429.3,2429.2,35.0209]
[1751162326481,1.28099,2429.3,2429.2,3.2078]
[1751162326685,1.28099,2429.3,2429.2,34.4428]
[1751162326879,2.67219,2429.3,2429.2,34.4428]
[1751162327790,2.67219,2429.3,2429.2,3.2078]
[1751162329392,0.57616,2429.0,2428.9,3.78398]
[1751162329589,0.57616,2429.0,2428.9,35.02898]
[1751162330092,0.57616,2429.0,2428.9,3.78398]
[1751162330292,0.57616,2429.0,2428.9,35.02798]
[1751162330694,0.57616,2429.0,2428.9,35.02698]
[1751162331196,0.57616,2429.0,2428.9,3.78398]
[1751162331691,0.57616,2429.0,2428.9,35.02598]
[1751162331993,0.57616,2429.0,2428.9,31.81818]
[1751162332193,0.57616,2429.0,2428.9,35.02598]
[1751162334189,0.7049,2429.3,2428.9,37.43075174]
[1751162334391,0.57608,2429.4,2429.3,0.57608]
[1751162336185,3.2078,2429.5,2429.4,0.57607]
[1751162336395,4.23004345,2429.5,2429.4,26.15637]
[1751162336594,1.59829345,2429.5,2429.4,26.15637]
[1751162340496,0.57605,2429.5,2429.4,26.15637]
[1751162340685,0.57605,2429.5,2429.4,27.61797]
[1751162341593,0.57604,2429.6,2429.5,0.57603]
[1751162341794,1.59977508,2429.6,2429.5,0.57603]
[1751162343201,1.02373508,2429.6,2429.5,0.57603]
[1751162343392,1.59975508,2429.6,2429.5,0.57603]
[1751162343700,1.59975508,2429.6,2429.5,6.93203]
[1751162343902,0.57601,2429.7,2429.6,0.57602]
[1751162344097,1.60003449,2429.7,2429.6,25.45902]
[1751162344594,1.02402449,2429.7,2429.6,25.45902]
[1751162344902,1.60002449,2429.7,2429.6,25.45902]
[1751162345294,1.60002449,2429.7,2429.6,24.883]
[1751162346398,1.60002449,2429.7,2429.6,25.45902]
[1751162346802,0.57602,2429.6,2429.5,2.70323]
[1751162347003,0.57602,2429.6,2429.5,33.93923]
[1751162348906,1.28851,2429.7,2429.6,0.57602]
[1751162349106,1.60028868,2429.7,2429.6,0.57602]
[1751162349306,1.60027868,2429.7,2429.6,0.57602]
[1751162349507,1.60027868,2429.7,2429.6,1.96762]
[1751162351309,1.60027868,2429.7,2429.6,0.57602]
[1751162354410,0.57602,2429.6,2429.5,32.54433]
[1751162356115,0.57602,2429.6,2429.5,32.52633]
[1751162357420,0.57601,2429.7,2429.6,0.576]
[1751162357715,1.59970962,2429.7,2429.6,0.576]
[1751162362316,1.02369962,2429.7,2429.6,0.576]
[1751162362721,3.2078,2429.8,2429.7,0.576]
[1751162362921,4.23176068,2429.8,2429.7,25.431]
[1751162363121,3.2078,2429.8,2429.7,25.431]
[1751162363715,3.2078,2429.8,2429.7,28.41195174]
[1751162365124,0.6931,2429.9,2429.8,0.57597]
[1751162365322,0.6931,2429.9,2429.8,6.92697]
[1751162365521,0.6931,2429.9,2429.8,7.64087]
[1751162365819,0.6931,2429.9,2429.8,31.78797]
[1751162367720,1.26905,2429.9,2429.8,0.57597]
[1751162367917,2.7922,2429.9,2429.5,3.2078]
[1751162368124,3.55692174,2429.8,2429.7,0.57599]
[1751162368425,4.94562174,2429.8,2429.7,25.43599]
[1751162368928,4.94562174,2429.8,2429.6,6.351]
[1751162368929,0.57602,2429.7,2429.6,0.57601]
[1751162369128,1.96472,2429.7,2429.6,31.78601]
[1751162372126,1.3887,2429.7,2429.6,31.78601]
[1751162373022,1.3887,2429.7,2429.6,0.57601]
[1751162373225,1.3887,2429.7,2429.6,31.78101]
[1751162373424,1.9647,2429.7,2429.6,31.78101]
[1751162373622,1.3887,2429.7,2429.6,31.78101]
[1751162373831,1.9647,2429.7,2429.6,31.78101]
[1751162374723,1.9647,2429.7,2429.6,0.57601]
[1751162375023,1.9647,2429.7,2429.6,31.77901]
[1751162376228,1.9647,2429.7,2429.6,0.57601]
[1751162376432,1.9647,2429.7,2429.6,31.77701]
[1751162377630,1.9647,2429.7,2429.6,0.57601]
[1751162377831,1.9647,2429.7,2429.6,31.77701]
[1751162380135,1.9647,2429.7,2429.6,0.57601]
[1751162380333,1.9647,2429.7,2429.6,31.75701]
[1751162380537,1.9647,2429.7,2429.6,31.75601]
[1751162381138,1.4035,2429.9,2429.7,0.57597]
[1751162381434,1.97945,2429.9,2429.8,25.42097]
[1751162381630,4.34712013,2429.9,2429.8,25.42097]
[1751162381832,4.34712013,2429.9,2429.8,0.57597]
[1751162382035,4.34712013,2429.9,2429.8,25.41897]
[1751162384830,4.34712013,2429.9,2429.8,25.41597]
[1751162385137,3.00252013,2429.9,2429.8,25.41497]
[1751162386542,3.00252013,2429.9,2429.8,0.57597]
[1751162386737,1.02307013,2429.9,2429.8,28.39692174]
[1751162387044,1.25511,2430.1,2430.0,0.57593]
[1751162387338,2.27852282,2430.1,2430.0,25.41393]
[1751162387540,2.27852282,2430.1,2430.0,24.838]
[1751162387842,0.57593,2430.0,2429.9,1.28623]
[1751162388043,1.59934282,2430.0,2429.9,32.47423]
[1751162389543,1.59934282,2430.0,2429.9,1.28623]
[1751162389745,1.59934282,2430.0,2429.9,32.47223]
[1751162391142,1.59934282,2430.0,2429.9,1.28623]
[1751162391440,1.59934282,2430.0,2429.9,32.47023]
[1751162391944,1.59934282,2430.0,2429.9,1.28623]
[1751162392146,1.59934282,2430.0,2429.9,32.46823]
[1751162394742,1.59934282,2430.0,2429.9,32.46423]
[1751162396444,1.02341282,2430.0,2429.9,32.46423]
[1751162396855,1.02346612,2430.0,2429.9,34.64665]
[1751162399153,1.27654,2430.4,2430.3,0.57586]
[1751162399347,2.29978774,2430.4,2430.3,25.41186]
[1751162399850,2.29978774,2430.4,2430.3,26.07836]
[1751162400050,5.28073948,2430.4,2430.3,26.07836]
[1751162400851,4.70489948,2430.4,2430.3,26.07836]
[1751162401050,5.28072948,2430.4,2430.3,26.07836]
[1751162401343,4.70489948,2430.4,2430.3,26.07836]
[1751162401748,5.28072948,2430.4,2430.3,26.07836]
[1751162402450,5.28072948,2430.4,2430.3,0.6665]
[1751162402655,4.70489948,2430.4,2430.0,0.57591]
[1751162402954,3.55685174,2430.1,2430.0,25.41391]
[1751162403154,4.58009948,2430.1,2430.0,25.41391]
[1751162403654,4.00419948,2430.1,2430.0,25.41391]
[1751162403855,5.27949948,2430.1,2430.0,25.41391]
[1751162404054,5.27949948,2430.1,2430.0,0.57591]
[1751162404254,0.57594,2430.0,2429.9,0.57594]
[1751162404454,3.55689174,2430.0,2429.9,25.41294]
[1751162404856,2.98095174,2430.0,2429.9,25.41294]
[1751162407459,2.63512,2430.1,2430.0,0.57593]
[1751162407758,6.06254578,2430.1,2430.0,0.57593]
[1751162408661,6.63844578,2430.1,2430.0,0.57593]
[1751162409053,4.70274578,2430.1,2430.0,0.57593]
[1751162410566,1.72179404,2430.1,2430.0,0.57593]
[1751162412759,1.72179404,2430.1,2430.0,1.26533]
[1751162417361,1.02239404,2430.1,2430.0,1.26533]
[1751162417561,1.02239404,2430.1,2430.0,3.28743]
[1751162419264,1.02239404,2430.1,2430.0,6.49523]
[1751162420069,1.30973,2430.4,2430.0,6.49523]
[1751162420070,4.29068174,2430.4,2430.3,0.57586]
[1751162420368,5.31369714,2430.4,2430.3,0.57586]
[1751162426175,6.68099714,2430.4,2430.3,0.57586]
[1751162426975,3.7000454,2430.4,2430.3,0.57586]
[1751162427176,6.68099714,2430.4,2430.3,0.57586]
[1751162431582,0.57586,2430.3,2430.2,0.57586]
[1751162431887,1.5988754,2430.3,2430.2,0.57586]
[1751162432182,0.57589,2430.2,2430.1,31.71689]
[1751162432381,4.57985714,2430.2,2430.1,31.71689]
[1751162434187,4.57985714,2430.2,2430.1,0.57589]
[1751162434481,4.57985714,2430.2,2430.1,25.38789]
[1751162435183,0.5759,2430.1,2430.0,1.26531]
[1751162435374,2.3087479,2430.1,2430.0,1.26531]
[1751162435579,2.3087479,2430.1,2430.0,31.71391]
[1751162437384,1.7328479,2430.1,2430.0,31.71391]
[1751162438685,2.3087479,2430.1,2430.0,31.71391]
[1751162439187,1.7328479,2430.1,2430.0,31.71391]
[1751162439388,2.3087479,2430.1,2430.0,31.71391]
[1751162441887,2.3087479,2430.1,2430.0,0.57591]
[1751162442189,2.3087479,2430.1,2430.0,25.38591]
[1751162442488,2.3087479,2430.1,2430.0,24.81]
[1751162442691,2.3087479,2430.1,2430.0,25.38593]
[1751162443697,2.3087479,2430.1,2430.0,0.57593]
[1751162444093,2.3087479,2430.1,2430.0,25.38593]
[1751162444287,2.3087479,2430.1,2430.0,0.57593]
[1751162444488,2.3087479,2430.1,2430.0,25.38593]
[1751162444689,4.39488848,2430.1,2430.0,0.57593]
[1751162445182,0.57593,2430.0,2429.9,6.89194]
[1751162445382,0.57593,2430.0,2429.9,31.70194]
[1751162446590,3.37396058,2430.1,2430.0,0.57593]
[1751162446794,4.39423761,2430.1,2430.0,0.57593]
[1751162452093,2.30809703,2430.1,2430.0,0.57593]
[1751162453397,0.57593,2430.0,2429.9,31.126]
[1751162453591,0.57593,2430.0,2429.9,31.70195]
[1751162453793,0.57593,2430.0,2429.8,0.6833]
[1751162453794,0.57595,2429.9,2429.8,0.6833]
[1751162453988,0.57595,2429.9,2429.8,26.06927]
[1751162454194,1.59609799,2429.9,2429.8,26.06927]
[1751162454491,1.02014799,2429.9,2429.8,26.06927]
[1751162454788,1.59609799,2429.9,2429.8,26.06927]
[1751162454993,1.02014799,2429.9,2429.8,26.06927]
[1751162455383,1.59609799,2429.9,2429.8,26.06927]
[1751162460393,1.02014799,2429.9,2429.8,1.25927]
[1751162460596,3.37139058,2430.0,2429.9,0.57595]
[1751162460892,4.38967155,2430.0,2429.9,0.57595]
[1751162464197,3.68037155,2430.0,2429.9,0.57595]
[1751162470807,0.57595,2429.9,2429.8,1.25926]
[1751162470994,1.30565,2429.9,2429.8,26.07026]
[1751162472105,2.32428671,2429.9,2429.8,26.07026]
[1751162474218,1.74833671,2429.9,2429.8,26.07026]
[1751162475420,2.32428671,2429.9,2429.8,1.25926]
[1751162475621,2.32428671,2429.9,2429.8,26.06926]
[1751162475925,1.74833671,2429.9,2429.8,26.06926]
[1751162476420,2.32428671,2429.9,2429.8,26.06926]
[1751162476619,1.74833671,2429.9,2429.8,26.06926]
[1751162477721,2.32428671,2429.9,2429.8,26.06926]
[1751162477920,2.32428671,2429.9,2429.8,1.25926]
[1751162478121,2.32428671,2429.9,2429.8,26.06926]
[1751162478318,1.74833671,2429.9,2429.8,26.06926]
[1751162478521,1.74833671,2429.9,2429.8,28.15540058]
[1751162478522,1.01863671,2429.9,2429.8,28.15540058]
[1751162478729,1.59458671,2429.9,2429.8,29.55810058]
[1751162480823,1.59458671,2429.9,2429.8,27.47196]
[1751162481028,1.59458671,2429.9,2429.8,26.06926]
[1751162482026,1.59458671,2429.9,2429.8,0.57596]
[1751162482323,1.59458671,2429.9,2429.8,31.70096]
[1751162486525,1.59458671,2429.9,2429.8,31.69996]
[1751162488130,1.59458671,2429.9,2429.8,0.57596]
[1751162488333,1.59458671,2429.9,2429.8,31.69996]
[1751162490437,1.59458671,2429.9,2429.8,0.57596]
[1751162490839,1.59458671,2429.9,2429.8,31.69996]
[1751162492339,1.59458671,2429.9,2429.8,0.57596]
[1751162492532,1.59458671,2429.9,2429.8,31.69996]
[1751162501752,1.59458671,2429.9,2429.8,31.124]
[1751162502053,1.59458671,2429.9,2429.8,31.69997]
[1751162503052,1.59458671,2429.9,2429.8,31.124]
[1751162504448,2.29868671,2429.9,2429.8,31.124]
[1751162506150,2.29868671,2429.9,2429.8,31.12]
[1751162507248,2.29868671,2429.9,2429.8,31.69597]
[1751162509261,2.29868671,2429.9,2429.8,31.12]
[1751162509455,2.29868671,2429.9,2429.8,31.69597]
[1751162509657,2.29868671,2429.9,2429.8,31.12]
[1751162510151,2.29868671,2429.9,2429.8,31.69597]
[1751162510757,2.29868671,2429.9,2429.8,31.12]
[1751162510957,2.29868671,2429.9,2429.8,31.69597]
[1751162511557,2.29868671,2429.9,2429.8,31.12]
[1751162514262,2.29868671,2429.9,2429.8,31.69597]
[1751162514459,0.57599,2429.8,2429.7,6.88999]
[1751162514659,1.59462671,2429.8,2429.7,31.69599]
[1751162520559,1.01863671,2429.8,2429.7,33.78213058]
[1751162520759,0.57593,2430.0,2429.9,0.57595]
[1751162521063,1.5978007,2430.0,2429.9,27.46709058]
[1751162522060,1.0218707,2430.0,2429.9,28.85539058]
[1751162525367,1.5978007,2430.0,2429.9,28.85539058]
[1751162525670,1.0218707,2430.0,2429.9,28.85539058]
[1751162526269,1.02136514,2430.0,2429.9,31.48724058]
[1751162526566,1.02136514,2430.0,2429.9,32.06319058]
[1751162533777,1.59729514,2430.0,2429.9,32.06319058]
[1751162534974,1.02136514,2430.0,2429.9,32.06319058]
[1751162535478,0.57592,2430.1,2430.0,0.57593]
[1751162535669,0.57592,2430.1,2430.0,6.88693]
[1751162535873,1.596387,2430.1,2430.0,8.23403]
[1751162536074,1.020467,2430.1,2430.0,8.23403]
[1751162536782,0.57589,2430.2,2430.1,0.57588]
[1751162536982,1.59632974,2430.2,2430.1,27.46302058]
[1751162537285,6.89026032,2430.2,2430.1,24.801]
[1751162538174,8.27056032,2430.2,2430.1,24.801]
[1751162540577,8.27056032,2430.2,2429.9,2.66207058]
[1751162540578,0.57593,2430.0,2429.9,6.31]
[1751162540774,1.59636974,2430.0,2429.9,31.11]
[1751162540975,1.59636974,2430.0,2429.9,31.68595]
[1751162542387,1.59636974,2430.0,2429.9,31.11]
[1751162542775,1.59636974,2430.0,2429.9,31.68595]
[1751162547491,1.59636974,2430.0,2429.9,31.68495]
[1751162550693,1.59636974,2430.0,2429.9,32.41965]
[1751162550892,1.02043974,2430.0,2429.9,32.41965]
[1751162552192,1.59636974,2430.0,2429.9,32.41965]
[1751162553192,1.02043974,2430.0,2429.9,32.41965]
[1751162553986,1.59636974,2430.0,2429.9,32.41965]
[1751162555900,1.02043974,2430.0,2429.9,32.41965]
[1751162557893,1.59636974,2430.0,2429.9,32.41965]
[1751162558595,1.02043974,2430.0,2429.9,32.41965]
[1751162558992,1.59636974,2430.0,2429.9,32.41965]
[1751162569702,0.57595,2429.9,2429.8,1.29506]
[1751162569910,1.59638974,2429.9,2429.8,31.67896]
[1751162574006,1.59638974,2429.9,2429.8,0.57596]
[1751162574208,1.59638974,2429.9,2429.8,31.67796]
[1751162574512,1.59638974,2429.9,2429.8,0.57596]
[1751162574811,1.59638974,2429.9,2429.8,31.67796]
[1751162576109,1.59638974,2429.9,2429.8,32.36226]
[1751162576919,1.02043974,2429.9,2429.8,34.44840058]
[1751162577314,1.59806589,2430.0,2429.9,0.57595]
[1751162581126,1.59806589,2430.0,2429.9,25.36895]
[1751162581326,1.59806589,2430.0,2429.9,0.57595]
[1751162581521,1.59806589,2430.0,2429.9,25.36895]
[1751162581828,1.59806589,2430.0,2429.9,0.57595]
[1751162582026,1.59806589,2430.0,2429.9,25.36895]
[1751162583433,1.02212589,2430.0,2429.9,25.36895]
[1751162583823,1.59805589,2430.0,2429.9,25.36895]
[1751162585227,1.02212589,2430.0,2429.9,25.36895]
[1751162586129,1.59805589,2430.0,2429.9,25.36895]
[1751162588930,1.02212589,2430.0,2429.9,25.36895]
[1751162589432,1.59805589,2430.0,2429.9,0.57595]
[1751162589728,1.59805589,2430.0,2429.9,25.36795]
[1751162589930,1.02212589,2430.0,2429.9,25.36795]
[1751162590826,1.02212589,2430.0,2429.9,27.46835]
[1751162597324,1.02212589,2430.0,2429.9,30.67615]
[1751162601029,2.66199058,2430.4,2430.3,0.57586]
[1751162601334,3.68363062,2430.4,2430.3,25.36586]
[1751162604136,3.68363062,2430.4,2430.3,24.79]
[1751162605629,3.68363062,2430.4,2430.3,25.36586]
[1751162606531,3.10778062,2430.4,2430.3,25.36586]
[1751162606738,1.02164004,2430.4,2430.3,25.36586]
[1751162610137,1.02164004,2430.4,2430.3,27.45200058]
[1751162610540,0.6939,2430.7,2430.6,0.57578]
[1751162614036,3.2078,2431.1,2430.5,29.03023058]
[1751162614242,3.2078,2431.1,2430.9,0.5757]
[1751162614243,1.59005456,2431.0,2430.9,0.5757]
[1751162614443,1.59005456,2431.0,2430.9,25.3597]
[1751162615141,1.59005456,2431.0,2430.9,24.784]
[1751162615343,1.59005456,2431.0,2430.9,25.35971]
[1751162615537,1.01435456,2431.0,2430.9,25.35971]
[1751162616040,5.98894058,2431.1,2431.0,0.57569]
[1751162616240,7.00271589,2431.1,2431.0,0.57569]
[1751162616833,7.57838589,2431.1,2431.0,0.57569]
[1751162617033,7.00271589,2431.1,2431.0,0.57569]
[1751162617234,5.98894058,2431.1,2431.0,0.57569]
[1751162617642,3.9028,2431.1,2431.0,0.57569]
[1751162618547,4.47847,2431.1,2431.0,0.57569]
[1751162620447,0.57571,2430.9,2430.8,0.57572]
[1751162620648,2.08614058,2430.9,2430.8,31.66172]
[1751162620839,2.66185058,2430.9,2430.8,31.084]
[1751162621042,0.57574,2430.8,2430.7,0.57575]
[1751162621234,1.29754,2430.8,2430.7,31.65975]
[1751162621441,1.29754,2430.8,2430.7,0.57575]
[1751162621647,1.29754,2430.8,2430.7,31.65975]
[1751162621847,0.7218,2430.8,2430.7,31.65975]
[1751162624149,1.29754,2430.8,2430.7,31.65975]
[1751162627959,1.29754,2430.8,2430.7,0.57575]
[1751162628262,1.29754,2430.8,2430.7,31.65575]
[1751162628449,2.63784,2430.8,2430.7,31.65575]
[1751162629849,2.63784,2430.8,2430.7,34.86355]
[1751162632958,2.63784,2430.8,2430.7,31.65575]
[1751162634953,2.0621,2430.8,2430.4,3.9084]
[1751162635159,3.55387796,2430.6,2430.5,31.65481]
[1751162635359,3.55387796,2430.6,2430.5,6.87681]
[1751162635554,3.55387796,2430.6,2430.5,31.079]
[1751162635858,3.55387796,2430.6,2430.5,31.65481]
[1751162636055,3.55387796,2430.6,2430.4,3.9084]
[1751162636056,0.57581,2430.5,2430.4,9.5088]
[1751162636362,0.6697,2430.5,2430.1,3.9326]
[1751162636658,0.57588,2430.2,2430.1,4.50849]
[1751162636861,0.57588,2430.2,2430.1,29.28649]
[1751162637158,0.57587,2430.3,2430.2,0.57588]
[1751162638062,0.57586,2430.3,2430.1,3.9326]
[1751162638363,0.7218,2430.2,2430.1,4.5085]
[1751162638554,0.7218,2430.2,2430.1,29.2865]
[1751162639752,0.7218,2430.2,2430.1,26.0787]
[1751162642562,1.29768,2430.2,2430.1,26.0787]
[1751162643356,1.29768,2430.2,2430.1,1.3007]
[1751162643567,0.7218,2430.2,2430.1,26.0817]
[1751162644063,1.29768,2430.2,2430.1,26.0817]
[1751162645258,0.5759,2430.1,2430.0,3.2741835]
[1751162645454,0.5759,2430.1,2430.0,24.782]
[1751162645657,1.928,2430.1,2430.0,24.782]
[1751162648566,1.928,2430.1,2430.0,25.35793]
[1751162649366,1.928,2430.1,2430.0,24.782]
[1751162649662,1.928,2430.1,2430.0,25.35793]
[1751162649868,0.5759,2430.1,2430.0,25.35793]
[1751162650571,0.5759,2430.1,2430.0,24.782]
[1751162650969,0.5759,2430.1,2430.0,25.35793]
[1751162652469,0.5759,2430.1,2430.0,24.782]
[1751162652767,0.5759,2430.1,2430.0,25.35793]
[1751162652964,0.5759,2430.1,2430.0,24.782]
[1751162653470,0.5759,2430.1,2430.0,25.35793]
[1751162656675,0.5759,2430.1,2430.0,24.782]
[1751162657371,0.5759,2430.1,2430.0,25.35793]
[1751162659672,0.5759,2430.1,2430.0,0.57593]
[1751162659870,0.57594,2430.0,2429.9,0.57594]
[1751162660277,0.57594,2430.0,2429.9,25.36194]
[1751162660779,0.57594,2430.0,2429.9,0.57594]
[1751162660974,0.57594,2430.0,2429.9,25.36194]
[1751162662585,4.5055,2430.2,2430.1,0.5759]
[1751162662782,1.59026662,2430.2,2430.1,0.5759]
[1751162665388,1.59026662,2430.2,2430.1,1.9468]
[1751162667495,1.01436662,2430.2,2430.1,1.9468]
[1751162667686,1.01436662,2430.2,2429.9,26.22587]
[1751162667687,3.9939487,2430.2,2429.7,6.302]
[1751162667999,0.57597,2429.8,2429.7,7.60098]
[1751162668198,0.57605,2429.5,2429.4,8.4431]
[1751162668391,0.57603,2429.6,2429.4,33.9521]
[1751162668590,0.57603,2429.6,2429.5,24.786]
[1751162669000,0.57605,2429.5,2429.4,7.6988]
[1751162669190,0.57604,2429.6,2429.4,33.06087]
[1751162669392,0.57604,2429.6,2429.5,0.57605]
[1751162670600,0.57604,2429.6,2429.4,33.06085]
[1751162670801,1.24692,2429.7,2429.5,0.57605]
[1751162671100,0.57602,2429.6,2429.5,0.57605]
[1751162671702,0.57602,2429.6,2429.5,24.786]
[1751162671995,0.57602,2429.6,2429.5,25.36205]
[1751162672398,0.57602,2429.6,2429.5,24.787]
[1751162672800,0.57602,2429.6,2429.5,25.36305]
[1751162672990,1.24692,2429.7,2429.6,0.57602]
[1751162673396,1.24692,2429.7,2429.5,25.36303]
[1751162674500,1.24692,2429.7,2429.5,24.787]
[1751162674801,1.24692,2429.7,2429.6,0.57602]
[1751162675204,0.57602,2429.6,2429.5,25.36303]
[1751162675397,0.57602,2429.6,2429.5,24.787]
[1751162676395,0.57602,2429.6,2429.5,25.36305]
[1751162676803,0.57605,2429.5,2429.4,1.97285]
[1751162677101,0.57616,2429.0,2428.9,3.2078]
[1751162677306,0.57616,2429.0,2428.9,27.9958]
[1751162678103,0.57616,2429.0,2428.9,28.57199]
[1751162678497,0.57616,2429.0,2428.9,27.9958]
[1751162678995,0.57616,2429.0,2428.9,28.57199]
[1751162679196,0.57616,2429.0,2428.9,3.2078]
[1751162679706,0.57616,2429.0,2428.9,24.788]
[1751162679901,0.57616,2429.0,2428.9,25.36419]
[1751162680101,0.57616,2429.0,2428.9,24.788]
[1751162680305,0.6944,2429.3,2429.2,0.57612]
[1751162680501,0.57609,2429.3,2429.2,0.5761]
[1751162680798,0.57609,2429.3,2429.1,25.36413]
[1751162680998,0.57609,2429.3,2429.2,0.7156]
[1751162681195,0.57609,2429.3,2429.2,1.29172]
[1751162681395,0.57609,2429.3,2429.2,0.7156]
[1751162682308,0.57609,2429.3,2429.2,1.29172]
[1751162682803,3.2078,2429.3,2429.0,24.791]
[1751162683008,0.57614,2429.1,2429.0,24.791]
[1751162683206,0.57616,2429.0,2428.9,0.57618]
[1751162683401,1.29796,2429.0,2428.9,25.41318]
[1751162683704,1.29796,2429.0,2428.9,0.57618]
[1751162684008,1.29796,2429.0,2428.9,25.41318]
[1751162684209,0.57619,2428.9,2428.8,7.5548]
[1751162684410,1.29798,2429.0,2428.9,0.57619]
[1751162685208,0.57619,2428.9,2428.8,32.3908]
[1751162685512,1.29798,2429.0,2428.8,32.3908]
[1751162685707,0.57619,2428.9,2428.8,32.3908]
[1751162685902,0.57619,2428.9,2428.8,0.6756]
[1751162686112,3.70138208,2429.0,2428.6,3.9015]
[1751162686305,0.57624,2428.7,2428.6,3.2078]
[1751162686607,0.57631,2428.4,2428.3,3.2078]
[1751162686809,3.55589208,2428.4,2428.3,3.2078]
[1751162688213,0.57635,2428.2,2428.1,0.7154]
[1751162688414,0.57635,2428.2,2428.1,25.5614]
[1751162688612,0.57635,2428.2,2428.1,0.7154]
[1751162688911,0.57638,2428.1,2428.0,28.0538]
[1751162689211,0.57638,2428.1,2428.0,28.6302]
[1751162689409,0.57638,2428.1,2428.0,28.0538]
[1751162689604,0.57642,2428.0,2427.8,10.1856235]
[1751162689809,0.57642,2428.0,2427.9,24.847]
[1751162690006,0.57642,2428.0,2427.9,24.849]
[1751162690205,0.6833,2428.1,2427.7,3.2078]
[1751162690411,0.6833,2428.1,2427.9,0.57642]
[1751162690412,1.25968,2428.1,2427.9,0.57642]
[1751162690615,1.25968,2428.1,2427.9,0.57641]
[1751162690918,0.5764,2428.0,2427.9,0.57641]
[1751162691310,0.57643,2427.9,2427.7,3.78425]
[1751162691512,3.55603208,2427.8,2427.4,3.2078]
[1751162691709,0.6736,2427.7,2427.6,0.57649]
[1751162692311,0.6736,2427.7,2427.5,25.43951]
[1751162692507,1.4256,2427.6,2427.5,25.43951]
[1751162692709,0.6736,2427.7,2427.6,0.5765]
[1751162693209,1.25007,2427.7,2427.5,0.57651]
[1751162693415,1.25009,2427.7,2427.5,0.57651]
[1751162694213,1.25009,2427.7,2427.4,3.2078]
[1751162694214,0.6736,2427.7,2427.6,0.5765]
[1751162694918,1.25007,2427.7,2427.4,3.2078]
[1751162695118,0.6736,2427.7,2427.6,0.5765]
[1751162696120,2.63538,2427.7,2427.5,0.5765]
[1751162696919,2.63538,2427.7,2427.6,0.5765]
[1751162697811,0.5765,2427.6,2427.5,0.5765]
[1751162698010,6.18738208,2427.6,2427.2,0.7288]
[1751162698218,3.65318208,2427.7,2427.2,0.7288]
[1751162698417,0.57657,2427.3,2427.2,0.7288]
[1751162698812,0.57657,2427.3,2426.8,3.2078]
[1751162698813,0.57666,2426.9,2426.8,3.2078]
[1751162699013,0.57666,2426.9,2426.1,3.2078]
[1751162699014,1.44172,2426.8,2426.1,3.2078]
[1751162699321,6.28633508,2426.9,2424.8,5.70247071]
[1751162699322,3.2078,2425.7,2424.8,5.70247071]
[1751162699517,3.2078,2424.9,2424.6,2.97958208]